Workbook

Sheet Arco (hidden)
B2: Cuadro 1: Datos del Proyecto
B3: Nombre Calle
B4: Arco
B5: Sentido
C8: Sin Proyecto | D8: Con Proyecto
B9: Número de Pistas
B10: Tipo Estacionamiento
B11: Existe Paradero
B12: Ancho de Pistas
B13: Tipo de Viraje
B14: Tipo de Señalización
C17: Sin Proyecto | D17: Con Proyecto
B18: Distancia (m)
B19: Rugosidad - IRI
B21: Tipo de Vehículo | C21: Velocidad de Flujo Libre (Km/hr)
C22: Sin Proyecto | D22: Con Proyecto
B23: Autos - Ctas.
B24: Taxis - TXC
B25: TXBus
B26: Buses
B27: Camiones
B30: Flujo Arco Sin Proyecto
B31: HORA ENCUESTA | C31: VL. Particulares | D31: Taxis-TXC | E31: TXBuses | F31: Buses | G31: Camiones
B32: 08:00-09:00 A.M.
B33: 13:15-14:15
B34: 18:45-19:45
B35: 10:00-11:00 A. M.
B37: Flujo Arco Con Proyecto
B38: HORA ENCUESTA | C38: VL. Particulares | D38: Taxis-TXC | E38: TXBuses | F38: Buses | G38: Camiones
B39: 08:00-09:00 A.M.
B40: 13:15-14:15
B41: 18:45-19:45
B42: 10:00-11:00 A. M.
B44: Cuadro 3: Factores de Expansión Horaria
B45: HORA | C45: VL. Particulares | D45: Taxis-TXC | E45: TXBuses | F45: Buses | G45: Camiones
B46: 08:00-09:00 A.M.
B47: 13:15-14:15
B48: 18:45-19:45
B49: 10:00-11:00 A. M.
B51: Cuadro 4: Tasas de crecimiento vehicular
B52: Tasa crecimiento anual (%) | C52: VL. Particulares | D52: Taxis-TXC | E52: TXBuses | F52: Buses | G52: Camiones
B55: Cuadro 5: Tasas de Ocupación Vehicular
B56: Tasa ocupación (pax-veh) | C56: VL. Particulares | D56: Taxis-TXC | E56: TXBuses | F56: Buses | G56: Camiones
B59: Cuadro 6: Velocidades de Operación
D60: 2016 | E60: =+D60+1 -> 2017 | F60: =E60+1 -> 2018 | G60: 2019 | H60: 2020 | I60: 2021 | J60: 2022 | K60: 2023 | L60: 2024 | M60: 2025 | N60: 2026 | O60: 2027 | P60: 2028 | Q60: 2029 | R60: 2030 | S60: 2031 | T60: 2032 | U60: 2033 | V60: 2034 | W60: 2035 | X60: 2036
B61: Velocidades sin Proyecto (PM) | C61: Autos - Ctas.
C62: Taxis - TXC
C63: TXBus
C64: Buses
C65: Camiones
D68: 2016 | E68: =+D68+1 -> 2017 | F68: =E68+1 -> 2018 | G68: =F68+1 -> 2019 | H68: =G68+1 -> 2020 | I68: =H68+1 -> 2021 | J68: =I68+1 -> 2022 | K68: =J68+1 -> 2023 | L68: =K68+1 -> 2024 | M68: =L68+1 -> 2025 | N68: =M68+1 -> 2026 | O68: =N68+1 -> 2027 | P68: =O68+1 -> 2028 | Q68: =P68+1 -> 2029 | R68: =Q68+1 -> 2030 | S68: =R68+1 -> 2031 | T68: =S68+1 -> 2032 | U68: =T68+1 -> 2033 | V68: =U68+1 -> 2034 | W68: =V68+1 -> 2035 | X68: =W68+1 -> 2036
B69: Velocidades con Proyecto (PM) | C69: Autos - Ctas.
C70: Taxis - TXC
C71: TXBus
C72: Buses
C73: Camiones
B125: Cuadro 6: TMDA
D126: 2016 | E126: =+D126+1 -> 2017 | F126: =E126+1 -> 2018 | G126: =F126+1 -> 2019 | H126: =G126+1 -> 2020 | I126: =H126+1 -> 2021 | J126: =I126+1 -> 2022 | K126: =J126+1 -> 2023 | L126: =K126+1 -> 2024 | M126: =L126+1 -> 2025 | N126: =M126+1 -> 2026 | O126: =N126+1 -> 2027 | P126: =O126+1 -> 2028 | Q126: =P126+1 -> 2029 | R126: =Q126+1 -> 2030 | S126: =R126+1 -> 2031 | T126: =S126+1 -> 2032 | U126: =T126+1 -> 2033 | V126: =U126+1 -> 2034 | W126: =V126+1 -> 2035 | X126: =W126+1 -> 2036
B127: TMDA Sin Proyecto | C127: Autos - Ctas. | E127: =+SUMPRODUCT($C$32:$C$35,$C$46:$C$49)*(1+$C$53)^(E126-$D$126) -> 0 | F127: =+SUMPRODUCT($C$32:$C$35,$C$46:$C$49)*(1+$C$53)^(F126-$D$126) -> 0 | G127: 0 | H127: 0 | I127: 0 | J127: 0 | K127: 0 | L127: 0 | M127: 0 | N127: 0 | O127: 0 | P127: 0 | Q127: 0 | R127: 0 | S127: 0 | T127: 0 | U127: 0 | V127: 0 | W127: 0 | X127: 0
C128: Taxis - TXC | E128: =+SUMPRODUCT($D$32:$D$35,$D$46:$D$49)*(1+$D$53)^(E126-$D$126) -> 0 | F128: =+SUMPRODUCT($D$32:$D$35,$D$46:$D$49)*(1+$D$53)^(F126-$D$126) -> 0 | G128: 0 | H128: 0 | I128: 0 | J128: 0 | K128: 0 | L128: 0 | M128: 0 | N128: 0 | O128: 0 | P128: 0 | Q128: 0 | R128: 0 | S128: 0 | T128: 0 | U128: 0 | V128: 0 | W128: 0 | X128: 0
C129: TXBus | E129: =+SUMPRODUCT($E$32:$E$35,$E$46:$E$49)*(1+$E$53)^(E126-$D$126) -> 0 | F129: =+SUMPRODUCT($E$32:$E$35,$E$46:$E$49)*(1+$E$53)^(F126-$D$126) -> 0 | G129: 0 | H129: 0 | I129: 0 | J129: 0 | K129: 0 | L129: 0 | M129: 0 | N129: 0 | O129: 0 | P129: 0 | Q129: 0 | R129: 0 | S129: 0 | T129: 0 | U129: 0 | V129: 0 | W129: 0 | X129: 0
C130: Buses | E130: =+SUMPRODUCT($F$32:$F$35,$F$46:$F$49)*(1+$F$53)^(E126-$D$126) -> 0 | F130: =+SUMPRODUCT($F$32:$F$35,$F$46:$F$49)*(1+$F$53)^(F126-$D$126) -> 0 | G130: 0 | H130: 0 | I130: 0 | J130: 0 | K130: 0 | L130: 0 | M130: 0 | N130: 0 | O130: 0 | P130: 0 | Q130: 0 | R130: 0 | S130: 0 | T130: 0 | U130: 0 | V130: 0 | W130: 0 | X130: 0
C131: Camiones | E131: =+SUMPRODUCT($G$32:$G$35,$G$46:$G$49)*(1+$G$53)^(E126-$D$126) -> 0 | F131: =+SUMPRODUCT($G$32:$G$35,$G$46:$G$49)*(1+$G$53)^(F126-$D$126) -> 0 | G131: 0 | H131: 0 | I131: 0 | J131: 0 | K131: 0 | L131: 0 | M131: 0 | N131: 0 | O131: 0 | P131: 0 | Q131: 0 | R131: 0 | S131: 0 | T131: 0 | U131: 0 | V131: 0 | W131: 0 | X131: 0
D132: TMDA (SP) | E132: =+SUM(E127:E131) -> 0 | F132: =+SUM(F127:F131) -> 0 | G132: 0 | H132: 0 | I132: 0 | J132: 0 | K132: 0 | L132: 0 | M132: 0 | N132: 0 | O132: 0 | P132: 0 | Q132: 0 | R132: 0 | S132: 0 | T132: 0 | U132: 0 | V132: 0 | W132: 0 | X132: 0
D134: 2016 | E134: =+D134+1 -> 2017 | F134: =E134+1 -> 2018 | G134: =F134+1 -> 2019 | H134: =G134+1 -> 2020 | I134: =H134+1 -> 2021 | J134: =I134+1 -> 2022 | K134: =J134+1 -> 2023 | L134: =K134+1 -> 2024 | M134: =L134+1 -> 2025 | N134: =M134+1 -> 2026 | O134: =N134+1 -> 2027 | P134: =O134+1 -> 2028 | Q134: =P134+1 -> 2029 | R134: =Q134+1 -> 2030 | S134: =R134+1 -> 2031 | T134: =S134+1 -> 2032 | U134: =T134+1 -> 2033 | V134: =U134+1 -> 2034 | W134: =V134+1 -> 2035 | X134: =W134+1 -> 2036
B135: TMDA Con Proyecto | C135: Autos - Ctas. | E135: =+SUMPRODUCT($C$39:$C$42,$C$46:$C$49)*(1+$C$53)^(E134-$D$126) -> 0 | F135: =+SUMPRODUCT($C$39:$C$42,$C$46:$C$49)*(1+$C$53)^(F134-$D$126) -> 0 | G135: 0 | H135: 0 | I135: 0 | J135: 0 | K135: 0 | L135: 0 | M135: 0 | N135: 0 | O135: 0 | P135: 0 | Q135: 0 | R135: 0 | S135: 0 | T135: 0 | U135: 0 | V135: 0 | W135: 0 | X135: 0
C136: Taxis - TXC | E136: =+SUMPRODUCT($D$39:$D$42,$D$46:$D$49)*(1+$D$53)^(E134-$D$126) -> 0 | F136: =+SUMPRODUCT($D$39:$D$42,$D$46:$D$49)*(1+$D$53)^(F134-$D$126) -> 0 | G136: 0 | H136: 0 | I136: 0 | J136: 0 | K136: 0 | L136: 0 | M136: 0 | N136: 0 | O136: 0 | P136: 0 | Q136: 0 | R136: 0 | S136: 0 | T136: 0 | U136: 0 | V136: 0 | W136: 0 | X136: 0
C137: TXBus | E137: =+SUMPRODUCT($E$39:$E$42,$E$46:$E$49)*(1+$E$53)^(E134-$D$126) -> 0 | F137: =+SUMPRODUCT($E$39:$E$42,$E$46:$E$49)*(1+$E$53)^(F134-$D$126) -> 0 | G137: 0 | H137: 0 | I137: 0 | J137: 0 | K137: 0 | L137: 0 | M137: 0 | N137: 0 | O137: 0 | P137: 0 | Q137: 0 | R137: 0 | S137: 0 | T137: 0 | U137: 0 | V137: 0 | W137: 0 | X137: 0
C138: Buses | E138: =+SUMPRODUCT($F$39:$F$42,$F$46:$F$49)*(1+$F$53)^(E134-$D$126) -> 0 | F138: =+SUMPRODUCT($F$39:$F$42,$F$46:$F$49)*(1+$F$53)^(F134-$D$126) -> 0 | G138: 0 | H138: 0 | I138: 0 | J138: 0 | K138: 0 | L138: 0 | M138: 0 | N138: 0 | O138: 0 | P138: 0 | Q138: 0 | R138: 0 | S138: 0 | T138: 0 | U138: 0 | V138: 0 | W138: 0 | X138: 0
C139: Camiones | E139: =+SUMPRODUCT($G$39:$G$42,$G$46:$G$49)*(1+$G$53)^(E134-$D$126) -> 0 | F139: =+SUMPRODUCT($G$39:$G$42,$G$46:$G$49)*(1+$G$53)^(F134-$D$126) -> 0 | G139: 0 | H139: 0 | I139: 0 | J139: 0 | K139: 0 | L139: 0 | M139: 0 | N139: 0 | O139: 0 | P139: 0 | Q139: 0 | R139: 0 | S139: 0 | T139: 0 | U139: 0 | V139: 0 | W139: 0 | X139: 0
D140: TMDA (CP) | E140: =+SUM(E135:E139) -> 0 | F140: =+SUM(F135:F139) -> 0 | G140: =+SUM(G135:G139) -> 0 | H140: =+SUM(H135:H139) -> 0 | I140: =+SUM(I135:I139) -> 0 | J140: =+SUM(J135:J139) -> 0 | K140: =+SUM(K135:K139) -> 0 | L140: =+SUM(L135:L139) -> 0 | M140: =+SUM(M135:M139) -> 0 | N140: =+SUM(N135:N139) -> 0 | O140: =+SUM(O135:O139) -> 0 | P140: =+SUM(P135:P139) -> 0 | Q140: =+SUM(Q135:Q139) -> 0 | R140: =+SUM(R135:R139) -> 0 | S140: =+SUM(S135:S139) -> 0 | T140: =+SUM(T135:T139) -> 0 | U140: =+SUM(U135:U139) -> 0 | V140: =+SUM(V135:V139) -> 0 | W140: =+SUM(W135:W139) -> 0 | X140: =+SUM(X135:X139) -> 0

Sheet Resultados (hidden)
A1: Resultados de la Evaluación
B2: Nombre:
B7: Datos del Proyecto
C8: Nombre Evaluador:
C9: Institución:
C10: Tipo de Proyecto:
C11: Año Hoy:
C12: Año Construcción:
C13: Ciudad:
C14: Código BIP:
B16: Datos de Inversión | D16: Precio ($) | E16: Unidades | F16: Total (Precio Privado) | G16: Total (Precio Social)
C17: Extracción de Escombros (m3)
C18: Demol. Pavimentos de Hormigón (m3)
C19: Demol. Pavimentos Asfalto y Adoquines (m3)
C20: Demolición de Aceras (m2)
C21: Extracc. de Soleras y Tpte. a Bodegas (m3)
C22: Excavaciones (m3)
C23: Terraplenes (m3)
C24: Relleno (m3)
C25: Preparación de Sub-rasante (m3)
C26: Base Estabilizado (m2)
C27: Tratamiento Superficial Simple (m3)
C28: Tratamiento Superficial Doble (m3)
C29: Pavimentos de Hormigón (m3)
C30: Imprimación Bituminosa (m2)
C31: Concreto Asfáltico (m3)
C32: Aceras de Hormigón (m3)
C33: Acer. de Bald. Micro-Vibrado (m2)
C34: Sum. Coloc. Solera (m3)
C35: Expropiaciones (m2)
C36: Sol. Aguas Lluvias y Servidas (G)
C37: Otros Servicios (G)
C38: Otros (G)
F39: =+SUM(F17:F38) -> 0 | G39: =+SUM(G17:G38) -> 0
B40: Parámetros de Inversión
C41: Mano de Obra Calificada | D41: 0.98 | F41: INDICADORES DE RENTABILIDAD SOCIAL
C42: Mano de Obra Semicalificada | D42: 0.68 | F42: VAN SOCIAL ($) | G42: =+D89 -> 0
C43: Mano de Obra No Calificada | D43: 0.62 | F43: TIR SOCIAL (%) | G43: =+D90 -> 
C44: Divisa | D44: 1.01 | F44: TRI (%)
F45: CPP (M$) | G45: 0
F46: IVAN
C47: Diesel ($/litro) | D47: 422
C48: Gasolina 95 ($/litro) | D48: 416 | F48: Tasa crecimiento anual (%)
C49: Tiempo de Viaje ($/h - pax) | D49: 1498 | F49: VL. Particulares | G49: 0.04
C50: Tasa Social de Descuento (%) | D50: 6 | F50: Taxis-TXC | G50: 0.04
F51: TXBuses | G51: 0.02
F52: Buses | G52: 0.02
C53: Valor UF | D53: 24627 | F53: Camiones | G53: 0.02
C54: Precio Dólar Observado | D54: 607
C55: Indice de Remuneraciones (En base 2009) | D55: 136.12
B57: Resultados Económicos
C59: RESULTADOS EVALUACIÓN SOCIAL PROYECTO:
E61: =+D12 -> 0 | F61: =+E61+1 -> 1 | G61: =F61+1 -> 2 | H61: 3 | I61: 4 | J61: 5 | K61: 6 | L61: 7 | M61: 8 | N61: 9 | O61: 10 | P61: 11 | Q61: 12 | R61: 13 | S61: 14 | T61: 15 | U61: 16 | V61: 17 | W61: 18 | X61: 19 | Y61: 20
C62: Ahorro Tiempo de Viaje | D62: Autos - Ctas. | F62: 0 | G62: 0 | H62: 0 | I62: 0 | J62: 0 | K62: 0 | L62: 0 | M62: 0 | N62: 0 | O62: 0 | P62: 0 | Q62: 0 | R62: 0 | S62: 0 | T62: 0 | U62: 0 | V62: 0 | W62: 0 | X62: 0 | Y62: 0
D63: Taxis - TXC | F63: 0 | G63: 0 | H63: 0 | I63: 0 | J63: 0 | K63: 0 | L63: 0 | M63: 0 | N63: 0 | O63: 0 | P63: 0 | Q63: 0 | R63: 0 | S63: 0 | T63: 0 | U63: 0 | V63: 0 | W63: 0 | X63: 0 | Y63: 0
D64: TXBus | F64: 0 | G64: 0 | H64: 0 | I64: 0 | J64: 0 | K64: 0 | L64: 0 | M64: 0 | N64: 0 | O64: 0 | P64: 0 | Q64: 0 | R64: 0 | S64: 0 | T64: 0 | U64: 0 | V64: 0 | W64: 0 | X64: 0 | Y64: 0
D65: Buses | F65: 0 | G65: 0 | H65: 0 | I65: 0 | J65: 0 | K65: 0 | L65: 0 | M65: 0 | N65: 0 | O65: 0 | P65: 0 | Q65: 0 | R65: 0 | S65: 0 | T65: 0 | U65: 0 | V65: 0 | W65: 0 | X65: 0 | Y65: 0
D66: Camiones | F66: 0 | G66: 0 | H66: 0 | I66: 0 | J66: 0 | K66: 0 | L66: 0 | M66: 0 | N66: 0 | O66: 0 | P66: 0 | Q66: 0 | R66: 0 | S66: 0 | T66: 0 | U66: 0 | V66: 0 | W66: 0 | X66: 0 | Y66: 0
D67: Total | F67: 0 | G67: 0 | H67: 0 | I67: 0 | J67: 0 | K67: 0 | L67: 0 | M67: 0 | N67: 0 | O67: 0 | P67: 0 | Q67: 0 | R67: 0 | S67: 0 | T67: 0 | U67: 0 | V67: 0 | W67: 0 | X67: 0 | Y67: 0
C68: Ahorro Costo Combustible | D68: Autos - Ctas. | F68: 0 | G68: 0 | H68: 0 | I68: 0 | J68: 0 | K68: 0 | L68: 0 | M68: 0 | N68: 0 | O68: 0 | P68: 0 | Q68: 0 | R68: 0 | S68: 0 | T68: 0 | U68: 0 | V68: 0 | W68: 0 | X68: 0 | Y68: 0
D69: Taxis - TXC | F69: 0 | G69: 0 | H69: 0 | I69: 0 | J69: 0 | K69: 0 | L69: 0 | M69: 0 | N69: 0 | O69: 0 | P69: 0 | Q69: 0 | R69: 0 | S69: 0 | T69: 0 | U69: 0 | V69: 0 | W69: 0 | X69: 0 | Y69: 0
D70: TXBus | F70: 0 | G70: 0 | H70: 0 | I70: 0 | J70: 0 | K70: 0 | L70: 0 | M70: 0 | N70: 0 | O70: 0 | P70: 0 | Q70: 0 | R70: 0 | S70: 0 | T70: 0 | U70: 0 | V70: 0 | W70: 0 | X70: 0 | Y70: 0
D71: Buses | F71: 0 | G71: 0 | H71: 0 | I71: 0 | J71: 0 | K71: 0 | L71: 0 | M71: 0 | N71: 0 | O71: 0 | P71: 0 | Q71: 0 | R71: 0 | S71: 0 | T71: 0 | U71: 0 | V71: 0 | W71: 0 | X71: 0 | Y71: 0
D72: Camiones | F72: 0 | G72: 0 | H72: 0 | I72: 0 | J72: 0 | K72: 0 | L72: 0 | M72: 0 | N72: 0 | O72: 0 | P72: 0 | Q72: 0 | R72: 0 | S72: 0 | T72: 0 | U72: 0 | V72: 0 | W72: 0 | X72: 0 | Y72: 0
D73: Total | F73: 0 | G73: 0 | H73: 0 | I73: 0 | J73: 0 | K73: 0 | L73: 0 | M73: 0 | N73: 0 | O73: 0 | P73: 0 | Q73: 0 | R73: 0 | S73: 0 | T73: 0 | U73: 0 | V73: 0 | W73: 0 | X73: 0 | Y73: 0
C74: Ahorro Otros Costos Operación Vehicular | D74: Autos - Ctas. | F74: 0 | G74: 0 | H74: 0 | I74: 0 | J74: 0 | K74: 0 | L74: 0 | M74: 0 | N74: 0 | O74: 0 | P74: 0 | Q74: 0 | R74: 0 | S74: 0 | T74: 0 | U74: 0 | V74: 0 | W74: 0 | X74: 0 | Y74: 0
D75: Taxis - TXC | F75: 0 | G75: 0 | H75: 0 | I75: 0 | J75: 0 | K75: 0 | L75: 0 | M75: 0 | N75: 0 | O75: 0 | P75: 0 | Q75: 0 | R75: 0 | S75: 0 | T75: 0 | U75: 0 | V75: 0 | W75: 0 | X75: 0 | Y75: 0
D76: TXBus | F76: 0 | G76: 0 | H76: 0 | I76: 0 | J76: 0 | K76: 0 | L76: 0 | M76: 0 | N76: 0 | O76: 0 | P76: 0 | Q76: 0 | R76: 0 | S76: 0 | T76: 0 | U76: 0 | V76: 0 | W76: 0 | X76: 0 | Y76: 0
D77: Buses | F77: 0 | G77: 0 | H77: 0 | I77: 0 | J77: 0 | K77: 0 | L77: 0 | M77: 0 | N77: 0 | O77: 0 | P77: 0 | Q77: 0 | R77: 0 | S77: 0 | T77: 0 | U77: 0 | V77: 0 | W77: 0 | X77: 0 | Y77: 0
D78: Camiones | F78: 0 | G78: 0 | H78: 0 | I78: 0 | J78: 0 | K78: 0 | L78: 0 | M78: 0 | N78: 0 | O78: 0 | P78: 0 | Q78: 0 | R78: 0 | S78: 0 | T78: 0 | U78: 0 | V78: 0 | W78: 0 | X78: 0 | Y78: 0
D79: Total | F79: 0 | G79: 0 | H79: 0 | I79: 0 | J79: 0 | K79: 0 | L79: 0 | M79: 0 | N79: 0 | O79: 0 | P79: 0 | Q79: 0 | R79: 0 | S79: 0 | T79: 0 | U79: 0 | V79: 0 | W79: 0 | X79: 0 | Y79: 0
C80: Ahorro Costos Mantenimiento | F80: 0 | G80: 0 | H80: 0 | I80: 0 | J80: 0 | K80: 0 | L80: 0 | M80: 0 | N80: 0 | O80: 0 | P80: 0 | Q80: 0 | R80: 0 | S80: 0 | T80: 0 | U80: 0 | V80: 0 | W80: 0 | X80: 0 | Y80: 0
C81: Beneficio Total | E81: =+E67+E73+E79+E80 -> 0 | F81: 0 | G81: 0 | H81: 0 | I81: 0 | J81: 0 | K81: 0 | L81: 0 | M81: 0 | N81: 0 | O81: 0 | P81: 0 | Q81: 0 | R81: 0 | S81: 0 | T81: 0 | U81: 0 | V81: 0 | W81: 0 | X81: 0 | Y81: 0
C82: Inversión Social / Valor Residual | E82: =+G39 -> 0 | W82: Valor Residual (+)
C83: Flujo Neto Social | E83: =+E81-E82 -> 0 | F83: =F81 -> 0 | G83: =G81 -> 0 | H83: 0 | I83: 0 | J83: 0 | K83: 0 | L83: 0 | M83: 0 | N83: 0 | O83: 0 | P83: 0 | Q83: 0 | R83: 0 | S83: 0 | T83: 0 | U83: 0 | V83: 0 | W83: 0 | X83: 0 | Y83: =+Y81+Y82 -> 0
C88: INDICADORES DE RENTABILIDAD SOCIAL
C89: VAN SOCIAL ($) | D89: =+NPV(D50/100,F83:Y83)+E83 -> 0
C90: TIR SOCIAL (%) | D90: =+IRR(E83:Y83) -> 
C91: TRI (%) | D91: =+F81/E82 -> 
C92: CPP (M$) | D92: =+(F81-E82*D50/100)/(1+D50/100) -> 0
C93: IVAN | D93: =+D89/E82 -> 
C96: Matriz de sensibilidad:
D97: Beneficios
C98: Inversión | D98: -1 | E98: -0.9 | F98: -0.8 | G98: -0.7 | H98: -0.6 | I98: -0.5 | J98: -0.4 | K98: -0.3 | L98: -0.2 | M98: -0.1 | N98: 0 | O98: 0.1 | P98: 0.2 | Q98: 0.3 | R98: 0.4 | S98: 0.5 | T98: 0.6 | U98: 0.7 | V98: 0.8 | W98: 0.9 | X98: 1
C99: -1 | D99: =+NPV($D$50/100,$F$83:$Y$83)*(1+D$98)*(1+$D$50/100)^(-1)-$E$82*(1+$C99) -> 0 | E99: =+NPV($D$50/100,$F$83:$Y$83)*(1+E$98)*(1+$D$50/100)^(-1)-$E$82*(1+$C99) -> 0 | F99: 0 | G99: 0 | H99: 0 | I99: 0 | J99: 0 | K99: 0 | L99: 0 | M99: 0 | N99: 0 | O99: 0 | P99: 0 | Q99: 0 | R99: 0 | S99: 0 | T99: 0 | U99: 0 | V99: 0 | W99: 0 | X99: 0
C100: -0.9 | D100: 0 | E100: 0 | F100: 0 | G100: 0 | H100: 0 | I100: 0 | J100: 0 | K100: 0 | L100: 0 | M100: 0 | N100: 0 | O100: 0 | P100: 0 | Q100: 0 | R100: 0 | S100: 0 | T100: 0 | U100: 0 | V100: 0 | W100: 0 | X100: 0
C101: -0.8 | D101: 0 | E101: 0 | F101: 0 | G101: 0 | H101: 0 | I101: 0 | J101: 0 | K101: 0 | L101: 0 | M101: 0 | N101: 0 | O101: 0 | P101: 0 | Q101: 0 | R101: 0 | S101: 0 | T101: 0 | U101: 0 | V101: 0 | W101: 0 | X101: 0
C102: -0.7 | D102: 0 | E102: 0 | F102: 0 | G102: 0 | H102: 0 | I102: 0 | J102: 0 | K102: 0 | L102: 0 | M102: 0 | N102: 0 | O102: 0 | P102: 0 | Q102: 0 | R102: 0 | S102: 0 | T102: 0 | U102: 0 | V102: 0 | W102: 0 | X102: 0
C103: -0.6 | D103: 0 | E103: 0 | F103: 0 | G103: 0 | H103: 0 | I103: 0 | J103: 0 | K103: 0 | L103: 0 | M103: 0 | N103: 0 | O103: 0 | P103: 0 | Q103: 0 | R103: 0 | S103: 0 | T103: 0 | U103: 0 | V103: 0 | W103: 0 | X103: 0
C104: -0.5 | D104: 0 | E104: 0 | F104: 0 | G104: 0 | H104: 0 | I104: 0 | J104: 0 | K104: 0 | L104: 0 | M104: 0 | N104: 0 | O104: 0 | P104: 0 | Q104: 0 | R104: 0 | S104: 0 | T104: 0 | U104: 0 | V104: 0 | W104: 0 | X104: 0
C105: -0.4 | D105: 0 | E105: 0 | F105: 0 | G105: 0 | H105: 0 | I105: 0 | J105: 0 | K105: 0 | L105: 0 | M105: 0 | N105: 0 | O105: 0 | P105: 0 | Q105: 0 | R105: 0 | S105: 0 | T105: 0 | U105: 0 | V105: 0 | W105: 0 | X105: 0
C106: -0.3 | D106: 0 | E106: 0 | F106: 0 | G106: 0 | H106: 0 | I106: 0 | J106: 0 | K106: 0 | L106: 0 | M106: 0 | N106: 0 | O106: 0 | P106: 0 | Q106: 0 | R106: 0 | S106: 0 | T106: 0 | U106: 0 | V106: 0 | W106: 0 | X106: 0
C107: -0.2 | D107: 0 | E107: 0 | F107: 0 | G107: 0 | H107: 0 | I107: 0 | J107: 0 | K107: 0 | L107: 0 | M107: 0 | N107: 0 | O107: 0 | P107: 0 | Q107: 0 | R107: 0 | S107: 0 | T107: 0 | U107: 0 | V107: 0 | W107: 0 | X107: 0
C108: -0.1 | D108: 0 | E108: 0 | F108: 0 | G108: 0 | H108: 0 | I108: 0 | J108: 0 | K108: 0 | L108: 0 | M108: 0 | N108: 0 | O108: 0 | P108: 0 | Q108: 0 | R108: 0 | S108: 0 | T108: 0 | U108: 0 | V108: 0 | W108: 0 | X108: 0
C109: 0 | D109: 0 | E109: 0 | F109: 0 | G109: 0 | H109: 0 | I109: 0 | J109: 0 | K109: 0 | L109: 0 | M109: 0 | N109: 0 | O109: 0 | P109: 0 | Q109: 0 | R109: 0 | S109: 0 | T109: 0 | U109: 0 | V109: 0 | W109: 0 | X109: 0
C110: 0.1 | D110: 0 | E110: 0 | F110: 0 | G110: 0 | H110: 0 | I110: 0 | J110: 0 | K110: 0 | L110: 0 | M110: 0 | N110: 0 | O110: 0 | P110: 0 | Q110: 0 | R110: 0 | S110: 0 | T110: 0 | U110: 0 | V110: 0 | W110: 0 | X110: 0
C111: 0.2 | D111: 0 | E111: 0 | F111: 0 | G111: 0 | H111: 0 | I111: 0 | J111: 0 | K111: 0 | L111: 0 | M111: 0 | N111: 0 | O111: 0 | P111: 0 | Q111: 0 | R111: 0 | S111: 0 | T111: =+NPV($D$50/100,$F$83:$Y$83)*(1+T$98)*(1+$D$50/100)^(-1)-$E$82*(1+$C111) -> 0 | U111: 0 | V111: 0 | W111: 0 | X111: 0
C112: 0.3 | D112: 0 | E112: 0 | F112: 0 | G112: 0 | H112: 0 | I112: 0 | J112: 0 | K112: 0 | L112: 0 | M112: 0 | N112: 0 | O112: 0 | P112: 0 | Q112: 0 | R112: 0 | S112: 0 | T112: 0 | U112: 0 | V112: 0 | W112: 0 | X112: 0
C113: 0.4 | D113: 0 | E113: 0 | F113: 0 | G113: 0 | H113: 0 | I113: 0 | J113: 0 | K113: 0 | L113: 0 | M113: 0 | N113: 0 | O113: 0 | P113: 0 | Q113: 0 | R113: 0 | S113: 0 | T113: 0 | U113: 0 | V113: 0 | W113: 0 | X113: 0
C114: 0.5 | D114: 0 | E114: 0 | F114: 0 | G114: 0 | H114: 0 | I114: 0 | J114: 0 | K114: 0 | L114: 0 | M114: 0 | N114: 0 | O114: 0 | P114: 0 | Q114: 0 | R114: 0 | S114: 0 | T114: 0 | U114: 0 | V114: 0 | W114: 0 | X114: 0
C115: 0.6 | D115: 0 | E115: 0 | F115: 0 | G115: 0 | H115: 0 | I115: 0 | J115: 0 | K115: 0 | L115: 0 | M115: 0 | N115: 0 | O115: 0 | P115: 0 | Q115: 0 | R115: 0 | S115: 0 | T115: 0 | U115: 0 | V115: 0 | W115: 0 | X115: 0
C116: 0.7 | D116: 0 | E116: 0 | F116: 0 | G116: 0 | H116: 0 | I116: 0 | J116: 0 | K116: 0 | L116: 0 | M116: 0 | N116: 0 | O116: 0 | P116: 0 | Q116: 0 | R116: 0 | S116: 0 | T116: 0 | U116: 0 | V116: 0 | W116: 0 | X116: 0
C117: 0.8 | D117: 0 | E117: 0 | F117: 0 | G117: 0 | H117: 0 | I117: 0 | J117: 0 | K117: 0 | L117: 0 | M117: 0 | N117: 0 | O117: 0 | P117: 0 | Q117: 0 | R117: 0 | S117: 0 | T117: 0 | U117: 0 | V117: 0 | W117: 0 | X117: 0
C118: 0.9 | D118: 0 | E118: 0 | F118: 0 | G118: 0 | H118: 0 | I118: 0 | J118: 0 | K118: 0 | L118: 0 | M118: 0 | N118: 0 | O118: 0 | P118: 0 | Q118: 0 | R118: 0 | S118: 0 | T118: 0 | U118: 0 | V118: 0 | W118: 0 | X118: 0
C119: 1 | D119: =+NPV($D$50/100,$F$83:$Y$83)*(1+D$98)*(1+$D$50/100)^(-1)-$E$82*(1+$C119) -> 0 | E119: =+NPV($D$50/100,$F$83:$Y$83)*(1+E$98)*(1+$D$50/100)^(-1)-$E$82*(1+$C119) -> 0 | F119: 0 | G119: 0 | H119: 0 | I119: 0 | J119: 0 | K119: 0 | L119: 0 | M119: 0 | N119: 0 | O119: 0 | P119: 0 | Q119: 0 | R119: 0 | S119: 0 | T119: 0 | U119: 0 | V119: 0 | W119: 0 | X119: 0

Sheet Aux (hidden)

Sheet Inicio
B2: Modelo Vialidad Intermedia
B3: V 1.0 2015
B4: Ministerio de Desarrollo Social
B6: 1. Parametros de Inversión
B11: 2. Ingreso de Arcos
B17: 3. Ver Resultados
C19: 50 | D19: 60
C20: 50 | D20: 60
B22: *Versión 1.0. Marzo 2015
B23: *El Manual de la Planilla se encuentra online, en:
B24: http://sni.ministeriodesarrollosocial.gob.cl/fotos/Vialidad Intermedia 2015.pdf
